lending/lending_fUSD_20250418
["ID","MTS","AMOUNT","RATE_DAILY","PERIOD"]
[358335838,1744948233179,-3188.40830871,0.00099899,15]
[358335839,1744948233189,-500.0,0.000999,120]
[358335840,1744948233199,-570.84383717,0.000999,80]
[358335841,1744948233209,-503.53954002,0.00099973,60]
[358335842,1744948233220,-3032.92108241,0.00099987,2]
[358335843,1744948233233,-10150.62115905,0.00099987,2]
[358335844,1744948233243,-28513.65919852,0.00099988,2]
[358335845,1744948233256,-12392.95097828,0.00099988,2]
[358335846,1744948233266,-274.07,0.0009999,30]
[358335847,1744948233276,-1005.9369,0.00099999,120]
[358335848,1744948233285,-2000.0,0.001,120]
[358335849,1744948233297,-616.89307299,0.001,120]
[358335850,1744948233310,-360.98630014,0.001,120]
[358335851,1744948233322,-714.57493333,0.001,120]
[358335852,1744948233334,-307.54569354,0.001,120]
[358335853,1744948233345,-177.45168296,0.001,30]
[358335854,1744948233366,-1758.83024329,0.001,30]
[358335855,1744948233379,-6272.97021421,0.001,30]
[358335856,1744948233392,-399.42291662,0.001,30]
[358335857,1744948233404,-420.54461945,0.001,30]
[358335858,1744948233415,-1301.93554296,0.001,30]
[358335860,1744948238120,-4000.0,0.0006,120]
[358335861,1744948238129,-2652.92889966,0.001,30]
[358335862,1744948238141,-37015.91588085,0.001,30]
[358335863,1744948238150,-50000.0,0.001,120]
[358335864,1744948238160,-524.4803,0.001,120]
[358335865,1744948238170,-806.888,0.00100857,120]
[358335866,1744948238180,-2000.0,0.001011,120]
[358335867,1744948238190,-319.34,0.00101361,120]
[358335868,1744948238200,-198.79,0.00101914,2]
[358335869,1744948238210,-1830.0,0.001038,120]
[358335870,1744948238220,-806.887,0.00103904,120]
[358335871,1744948238229,-198.79,0.00104177,2]
[358335872,1744948238239,-1000.0,0.00104461,120]
[358335873,1744948238248,-157.041813,0.00104498,120]
[358335874,1744948238257,-163.8,0.00105786,120]
[358335875,1744948238267,-500.0,0.00106344,120]
[358335876,1744948238276,-198.79,0.00106441,2]
[358335877,1744948238285,-1830.39960846,0.001066,120]
[358335878,1744948238296,-806.888,0.00106952,120]
[358335879,1744948238307,-198.79,0.00108705,2]
[358335880,1744948238316,-500.0,0.00109589,120]
[358335881,1744948238325,-3188.40830869,0.00109781,15]
[358335882,1744948238334,-806.887,0.0011,120]
[358335883,1744948238344,-198.79,0.00110969,2]
[358335884,1744948238354,-250.0,0.00111021,120]
[358335885,1744948238363,-700.0,0.0011127,120]
[358335886,1744948238374,-319.34,0.00111497,120]
[358335887,1744948238384,-163.8,0.00112009,120]
[358335888,1744948238394,-301.56975986,0.00112586,120]
[358335890,1744948238404,-198.79,0.00113233,2]
[358335892,1744948238413,-600.0,0.00114487,120]
[358335894,1744948238423,-157.041813,0.00114498,120]
[358335895,1744948238432,-1000.0,0.00114907,120]
[358335896,1744948238442,-198.79,0.00115497,2]
[358335897,1744948238451,-500.0,0.001168,60]
[358335898,1744948238461,-21240.0,0.00117394,2]
[358335899,1744948238471,-198.79,0.00117761,2]
[358335900,1744948238481,-507.22516603,0.00117879,120]
[358335901,1744948238501,-3188.40830869,0.00119664,15]
[358335902,1744948238516,-500.0,0.0012,120]
[358335903,1744948238526,-500.0,0.0012,120]
[358335904,1744948238535,-500.0,0.0012,120]
[358335905,1744948238544,-330.86801094,0.0012,120]
[358335906,1744948238553,-198.79,0.00120025,2]
[358335907,1744948238563,-166.37,0.00121423,120]
[358335908,1744948238572,-319.34,0.00121633,120]
[358335909,1744948238582,-1002.79118924,0.00122279,60]
[358335910,1744948238592,-151.69121092,0.00123,2]
[358335911,1744948238602,-6583.99283727,0.00123508,15]
[358335912,1744948238611,-157.041813,0.00124498,120]
[358335913,1744948238620,-1000.0,0.00125353,120]
[358335914,1744948238628,-1525.93579401,0.00126,120]
[358335915,1744948238638,-274.07,0.0012622,30]
[358335916,1744948238647,-107592.70825568,0.0012623,120]
[358335917,1744948238660,-91923.65524099,0.0012623,120]
[358335918,1744948238670,-753.8625899,0.00126688,97]
[358335919,1744948238679,-165.21,0.00126788,30]
[358335920,1744948238688,-162.19684763,0.00126973,60]
[358335921,1744948238698,-500.0,0.00126973,60]
[358335922,1744948238707,-500.0,0.00127764,120]
[358335923,1744948238859,-523.0,0.00128329,2]
[358335924,1744948238880,-1539.0,0.001284,21]
[358335925,1744948238890,-2194.66427909,0.00129536,20]
[358335926,1744948238900,-3188.40830869,0.00129546,15]
[358335927,1744948238910,-179756.431468,0.0013,120]
[358335928,1744948238919,-816.8647632,0.0013,2]
[358335929,1744948238929,-2194.66427909,0.00130667,21]
[358335930,1744948238939,-729.75,0.00130677,30]
[358335931,1744948238948,-500.0,0.00130723,120]
[358335932,1744948238958,-700.0,0.00130875,120]
[358335933,1744948238968,-623.44890813,0.00131333,60]
[358335934,1744948238977,-2194.66427909,0.00131396,22]
[358335935,1744948238987,-406.59150994,0.00131406,120]
[358335936,1744948238997,-16896.33822581,0.00131406,120]
[358335943,1744948241659,-157.70804223,0.000999,28]
[358335944,1744948241669,-7324.98195777,0.00131406,120]
[358335945,1744948241681,-1679.40604853,0.00131406,120]
[358335946,1744948241693,-629.8,0.00131406,120]
[358335947,1744948241703,-62357.47376789,0.00131406,120]
[358335948,1744948241712,-61450.5998145,0.00131496,22]
[358335949,1744948241721,-411.74269448,0.00131496,19]
[358335950,1744948241731,-535.62346268,0.00131506,120]
[358335951,1744948241740,-381.24332724,0.00131506,120]
[358335952,1744948241750,-366.47080591,0.00131506,120]
[358335953,1744948241759,-553.87978929,0.00131506,120]
[358335954,1744948241768,-500.0,0.00131506,120]
[358335955,1744948241777,-458.0984484,0.00131506,120]
[358335956,1744948241787,-247.42971259,0.00131506,120]
[358335957,1744948241796,-500.0,0.00131506,120]
[358335958,1744948241805,-500.0,0.00131506,120]
[358335959,1744948241814,-500.0,0.00131506,120]
[358335960,1744948241823,-500.0,0.00131506,120]
[358335961,1744948241832,-500.0,0.00131506,120]
[358335962,1744948241842,-400.03276811,0.00131506,120]
[358335963,1744948241852,-500.0,0.00131506,120]
[358335964,1744948241861,-543.63473351,0.00131506,120]
[358335965,1744948241870,-1500.0,0.00131506,120]
[358335966,1744948241880,-500.0,0.00131506,120]
[358335967,1744948241889,-500.0,0.00131506,120]
[358335968,1744948241898,-512.63592137,0.00131506,120]
[358335969,1744948241907,-436.02804454,0.00131506,120]
[358335970,1744948241916,-520.42581854,0.00131506,120]
[358335971,1744948241926,-509.256568,0.00131506,120]
[358335972,1744948241936,-454.05352283,0.00131506,120]
[358335973,1744948241945,-186.37223064,0.00131506,120]
[358335974,1744948241954,-340.43494139,0.00131506,120]
[358335975,1744948241964,-500.0,0.00131506,120]
[358335976,1744948241973,-508.77744607,0.00131506,120]
[358335977,1744948241983,-422.34147592,0.00131506,120]
[358335978,1744948241992,-512.79380391,0.00131506,120]
[358335979,1744948242002,-500.0,0.00131506,120]
[358335980,1744948242011,-511.60142518,0.00131506,120]
[358335981,1744948242021,-500.0,0.00131506,120]
[358335982,1744948242030,-569.53310261,0.00131506,120]
[358335983,1744948242039,-500.0,0.00131506,120]
[358335984,1744948242049,-523.42273495,0.00131506,120]
[358335985,1744948242058,-309.22157431,0.00131506,120]
[358335986,1744948242067,-500.0,0.00131506,120]
[358335987,1744948242076,-500.0,0.00131506,120]
[358335988,1744948242090,-512.00450812,0.00131506,120]
[358335989,1744948242099,-500.0,0.00131506,120]
[358335990,1744948242109,-500.0,0.00131506,120]
[358335991,1744948242119,-510.55315767,0.00131506,120]
[358335992,1744948242129,-370.6255442,0.00131506,120]
[358335993,1744948242138,-507.28683466,0.00131506,120]
[358335994,1744948242148,-506.83976936,0.00131506,120]
[358335995,1744948242157,-513.40655878,0.00131506,120]
[358335996,1744948242167,-538.47425658,0.00131506,120]
[358335997,1744948242178,-440.85085116,0.00131506,120]
[358335998,1744948242187,-509.11603999,0.00131506,120]
[358335999,1744948242197,-178.77574684,0.00131506,120]
[358336000,1744948242207,-551.20852136,0.00131506,120]
[358336002,1744948242217,-500.0,0.00131506,120]
[358336004,1744948242227,-500.0,0.00131506,120]
[358336006,1744948242236,-337.93891359,0.00131506,120]
[358336008,1744948242246,-530.11462405,0.00131506,120]
[358336009,1744948242256,-500.0,0.00131506,120]
[358336010,1744948242266,-538.50498619,0.00131506,120]
[358336011,1744948242276,-500.0,0.00131506,120]
[358336012,1744948242285,-500.0,0.00131506,120]
[358336013,1744948242296,-399.6626564,0.00131506,120]
[358336014,1744948242308,-500.0,0.00131506,120]
[358336015,1744948242317,-528.31441154,0.00131506,120]
[358336016,1744948242327,-529.1274795,0.00131506,120]
[358336017,1744948242336,-500.0,0.00131506,120]
[358336018,1744948242346,-500.0,0.00131506,120]
[358336019,1744948242356,-519.4000582,0.00131506,120]
[358336020,1744948242365,-500.0,0.00131506,30]
[358336021,1744948242376,-508.97362957,0.00131506,120]
[358336022,1744948242386,-500.0,0.00131506,120]
[358336023,1744948242395,-500.0,0.00131506,120]
[358336024,1744948242405,-535.64713727,0.00131506,120]
[358336025,1744948242414,-500.0,0.00131506,120]
[358336026,1744948242424,-500.0,0.00131506,120]
[358336027,1744948242441,-518.744713,0.00131506,120]
[358336028,1744948242451,-513.34284237,0.00131506,120]
[358336029,1744948242461,-500.0,0.00131506,120]
[358336030,1744948242470,-242.82849985,0.00131506,120]
[358336031,1744948242480,-580.95942999,0.00131506,120]
[358336032,1744948242489,-508.97574145,0.00131506,120]
[358336033,1744948242499,-500.0,0.00131506,120]
[358336034,1744948242508,-513.50645314,0.00131506,120]
[358336035,1744948242518,-522.43886756,0.00131506,120]
[358336036,1744948242527,-500.0,0.00131506,2]
[358336037,1744948242536,-515.6596456,0.00131506,120]
[358336038,1744948242545,-500.0,0.00131506,120]
[358336039,1744948242555,-500.0,0.00131506,2]
[358336040,1744948242565,-509.38581779,0.00131506,120]
[358336041,1744948242574,-570.68940391,0.00131506,120]
[358336042,1744948242584,-500.0,0.00131506,120]
[358336043,1744948242593,-500.0,0.00131506,120]
[358336044,1744948242602,-500.0,0.00131506,120]
[358336045,1744948242611,-252.5793069,0.00131506,120]
[358336046,1744948242620,-500.0,0.00131506,120]
[358336047,1744948242630,-500.0,0.00131506,120]
[358336048,1744948242640,-500.0,0.00131506,120]
[358336049,1744948242649,-515.95827733,0.00131506,120]
[358336050,1744948242658,-500.0,0.00131506,120]
[358336051,1744948242667,-500.0,0.00131506,120]
[358336052,1744948242677,-500.0,0.00131506,120]
[358336053,1744948242686,-500.0,0.00131506,120]
[358336054,1744948242696,-544.10843469,0.00131506,120]
[358336055,1744948242705,-500.0,0.00131506,120]
[358336056,1744948242714,-510.93839131,0.00131506,120]
[358336057,1744948242723,-500.0,0.00131506,120]
[358336058,1744948242732,-500.0,0.00131506,120]
[358336059,1744948242741,-502.61608829,0.00131506,120]
[358336060,1744948242751,-500.0,0.00131506,120]
[358336061,1744948242760,-500.0,0.00131506,120]
[358336062,1744948242770,-384.80761146,0.00131506,120]
[358336063,1744948242782,-500.0,0.00131506,120]
[358336064,1744948242791,-543.03773652,0.00131506,120]
[358336065,1744948242800,-500.0,0.00131506,120]
[358336066,1744948242809,-2000.0,0.00131506,120]
[358336067,1744948242819,-500.0,0.00131506,120]
[358336068,1744948242828,-500.0,0.00131506,120]
[358336069,1744948242837,-500.0,0.00131506,120]
[358336070,1744948242849,-500.0,0.00131506,120]
[358336071,1744948242858,-500.0,0.00131506,120]
[358336072,1744948242867,-500.0,0.00131506,120]
[358336073,1744948242877,-500.0,0.00131506,120]
[358336074,1744948242886,-472.87360729,0.00131506,120]
[358336075,1744948242895,-500.0,0.00131506,120]
[358336076,1744948242907,-500.0,0.00131506,120]
[358336077,1744948242917,-562.22107247,0.00131506,120]
[358336078,1744948242926,-500.0,0.00131506,120]
[358336079,1744948242935,-619.73715535,0.00131506,120]
[358336080,1744948242944,-500.0,0.00131506,120]
[358336081,1744948242955,-500.0,0.00131506,120]
[358336082,1744948242965,-500.0,0.00131506,30]
[358336083,1744948242976,-500.0,0.00131506,120]
[358336084,1744948242986,-500.0,0.00131506,120]
[358336085,1744948242995,-500.0,0.00131506,120]
[358336086,1744948243005,-193.21954938,0.00131506,120]
[358336087,1744948243015,-500.0,0.00131506,120]
[358336088,1744948243024,-323.38357231,0.00131506,120]
[358336089,1744948243033,-518.16622763,0.00131506,120]
[358336090,1744948243044,-526.73327561,0.00131506,120]
[358336091,1744948243054,-538.88591747,0.00131506,120]
[358336092,1744948243064,-500.0,0.00131506,120]
[358336093,1744948243242,-517.3531088,0.00131506,120]
[358336094,1744948243251,-415.29076309,0.00131506,120]
[358336095,1744948243260,-523.1004914,0.00131506,120]
[358336096,1744948243270,-1250.02,0.00131506,120]
[358336097,1744948243279,-531.06554554,0.00131506,120]
[358336098,1744948243288,-500.0,0.00131506,120]
[358336099,1744948243300,-500.0,0.00131506,120]
[358336100,1744948243309,-2521.519031,0.00131506,120]
[358336101,1744948243318,-179.22147972,0.00131506,120]
[358336102,1744948243327,-591.76,0.00131506,120]
[358336103,1744948243337,-500.0,0.00131506,120]
[358336104,1744948243347,-160.922292,0.00131506,120]
[358336105,1744948243356,-334.4938371,0.00131506,120]
[358336106,1744948243365,-242.92387036,0.00131506,120]
[358336107,1744948243376,-500.0,0.00131506,120]
[358336108,1744948243386,-500.0,0.00131506,120]
[358336109,1744948243395,-500.0,0.00131506,120]
[358336110,1744948243408,-500.0,0.00131506,120]
[358336111,1744948243417,-49.72593542,0.00131506,120]
[358336112,1744948243440,-450.27406458,0.00131506,120]
[358336113,1744948243450,-500.0,0.00131506,120]
[358336114,1744948243460,-544.99313857,0.00131506,120]
[358336115,1744948243469,-500.0,0.00131506,120]
[358336116,1744948243479,-271.51504509,0.00131506,120]
[358336117,1744948243490,-228.48495491,0.00131506,120]
[358336118,1744948243499,-152.453832,0.00131506,120]
[358336119,1744948243508,-534.2438455,0.00131506,120]
[358336120,1744948243517,-500.0,0.00131506,120]
[358336121,1744948243527,-500.0,0.00131506,120]
[358336122,1744948243535,-502.75935688,0.00131506,120]
[358336123,1744948243544,-2267.987513,0.00131506,120]
[358336124,1744948243554,-528.00461444,0.00131506,120]
[358336125,1744948243564,-500.0,0.00131506,120]
[358336126,1744948243573,-500.0,0.00131506,120]
[358336127,1744948243582,-500.0,0.00131506,120]
[358336128,1744948243591,-500.0,0.00131506,120]
[358336129,1744948243601,-500.0,0.00131506,120]
[358336130,1744948243611,-500.0,0.00131506,120]
[358336131,1744948243620,-639.07,0.00131506,120]
[358336132,1744948243630,-166.99104564,0.00131506,120]
[358336133,1744948243646,-393.20014286,0.00131506,120]
[358336134,1744948243656,-517.79054834,0.00131506,120]
[358336135,1744948243667,-525.00158637,0.00131506,120]
[358336136,1744948243676,-77.86947517,0.00131506,120]
[358336137,1744948244549,-500.0,0.00099997,120]
[358336138,1744948244558,-1147.69906167,0.00099997,120]
[358336139,1744948244568,-1147.69906167,0.00099997,120]
[358336140,1744948244577,-1147.69906167,0.00099997,120]
[358336141,1744948244586,-216.05281499,0.00099997,120]
[358336142,1744948244604,-600.0,0.00099997,120]
[358336146,1744948245512,-331.64624668,0.00099997,120]
[358336147,1744948245522,-637.24181343,0.00099997,120]
[358336148,1744948245532,-349.31193989,0.00099997,120]
[358336149,1744948245969,-295.25514135,0.00099997,120]
[358336150,1744948245985,-503.13198043,0.00099997,120]
[358336151,1744948245996,-1147.69906167,0.00099997,120]
[358336152,1744948246005,-1147.69906167,0.00099997,120]
[358336153,1744948246015,-1147.69906167,0.00099997,120]
[358336154,1744948246025,-1147.69906167,0.00099997,120]
[358336155,1744948246035,-1147.69906167,0.00099997,120]
[358336156,1744948246044,-1147.69906167,0.00099997,120]
[358336157,1744948246054,-1147.69906167,0.00099997,120]
[358336158,1744948246064,-1147.69906167,0.00099997,120]
[358336159,1744948246073,-418.14124574,0.00099997,120]
[358336160,1744948246084,-383.87296915,0.00099997,120]
[358336161,1744948246101,-345.68484678,0.00099997,120]
[358336162,1744948246110,-148.93287201,0.00099997,120]
[358336163,1744948246145,-998.76618966,0.00099997,120]
[358336164,1744948246154,-1147.69906167,0.00099997,120]
[358336165,1744948246164,-1147.69906167,0.00099997,120]
[358336166,1744948246173,-1147.69906167,0.00099997,120]
[358336167,1744948246184,-1147.69906167,0.00099997,120]
[358336168,1744948246193,-1147.69906167,0.00099997,120]
[358336169,1744948246203,-1147.69906167,0.00099997,120]
[358336170,1744948246212,-1147.69906167,0.00099997,120]
[358336171,1744948246222,-1147.69906167,0.00099997,120]
[358336172,1744948246231,-1147.69906167,0.00099997,120]
[358336173,1744948246242,-1147.69906167,0.00099997,120]
[358336174,1744948246251,-1147.69906167,0.00099997,120]
[358336175,1744948246262,-1147.69906167,0.00099997,120]
[358336176,1744948246272,-1147.69906167,0.00099997,120]
[358336177,1744948246282,-1147.69906167,0.00099997,120]
[358336178,1744948246292,-1147.69906167,0.00099997,120]
[358336179,1744948246306,-1147.69906167,0.00099997,120]
[358336180,1744948246315,-1147.69906167,0.00099997,120]
[358336181,1744948246325,-1147.69906167,0.00099997,120]
[358336182,1744948246334,-1147.69906167,0.00099997,120]
[358336183,1744948246345,-1147.69906167,0.00099997,120]
[358336184,1744948246355,-157.70804221,0.00117043,28]
[358336185,1744948246364,-500.0,0.0013,120]
[358336186,1744948246374,-422.13052483,0.00131506,120]
[358336187,1744948246384,-500.0,0.00131506,120]
[358336188,1744948246394,-500.0,0.00131506,120]
[358336189,1744948246404,-500.0,0.00131506,120]
[358336190,1744948246413,-500.0,0.00131506,120]
[358336192,1744948246423,-500.0,0.00131506,120]
[358336194,1744948246433,-500.0,0.00131506,120]
[358336196,1744948246443,-391.38001663,0.00131506,120]
[358336198,1744948246452,-367.65195052,0.00131506,120]
[358336200,1744948246461,-537.60946796,0.00131506,120]
[358336202,1744948246471,-485.02064048,0.00131506,120]
[358336203,1744948246480,-500.0,0.00131506,120]
[358336204,1744948246490,-516.16856261,0.00131506,120]
[358336205,1744948246500,-729.633308,0.00131506,120]
[358336206,1744948246509,-536.73985914,0.00131506,120]
[358336207,1744948246518,-500.0,0.00131506,120]
[358336208,1744948246527,-500.0,0.00131506,120]
[358336209,1744948246537,-500.0,0.00131506,120]
[358336210,1744948246546,-500.0,0.00131506,120]
[358336211,1744948246556,-500.0,0.00131506,120]
[358336212,1744948246565,-240.615382,0.00131506,120]
[358336213,1744948246575,-500.0,0.00131506,120]
[358336214,1744948246584,-500.0,0.00131506,120]
[358336215,1744948246595,-546.4573817,0.00131506,120]
[358336216,1744948246604,-500.0,0.00131506,120]
[358336217,1744948246613,-500.0,0.00131506,120]
[358336218,1744948246623,-500.0,0.00131506,120]
[358336219,1744948246632,-500.0,0.00131506,120]
[358336220,1744948246642,-500.0,0.00131506,120]
[358336221,1744948246652,-500.0,0.00131506,120]
[358336222,1744948246662,-500.0,0.00131506,120]
[358336223,1744948246671,-500.0,0.00131506,120]
[358336224,1744948246681,-500.0,0.00131506,120]
[358336225,1744948246690,-500.0,0.00131506,120]
[358336226,1744948246700,-502.41445796,0.00131506,120]
[358336227,1744948246709,-500.0,0.00131506,120]
[358336228,1744948246719,-570.40833005,0.00131506,120]
[358336229,1744948246729,-500.0,0.00131506,120]
[358336230,1744948246738,-500.0,0.00131506,120]
[358336231,1744948246748,-500.0,0.00131506,120]
[358336232,1744948246757,-517.23609874,0.00131506,120]
[358336233,1744948246767,-316.78515889,0.00131506,120]
[358336234,1744948246777,-500.0,0.00131506,120]
[358336235,1744948246786,-500.0,0.00131506,120]
[358336236,1744948246796,-500.0,0.00131506,120]
[358336237,1744948246806,-500.0,0.00131506,14]
[358336238,1744948246816,-507.35042071,0.00131506,120]
[358336239,1744948246825,-500.0,0.00131506,120]
[358336240,1744948246835,-500.0,0.00131506,120]
[358336241,1744948246844,-500.0,0.00131506,120]
[358336242,1744948246854,-500.0,0.00131506,120]
[358336243,1744948246863,-500.0,0.00131506,120]
[358336244,1744948246872,-500.0,0.00131506,120]
[358336245,1744948246882,-500.0,0.00131506,120]
[358336246,1744948246891,-507.29332492,0.00131506,120]
[358336247,1744948246901,-500.0,0.00131506,120]
[358336248,1744948246910,-500.0,0.00131506,120]
[358336249,1744948246919,-500.0,0.00131506,120]
[358336250,1744948246929,-500.0,0.00131506,14]
[358336251,1744948246938,-500.0,0.00131506,120]
[358336252,1744948246947,-449.86150924,0.00131506,120]
[358336253,1744948246956,-500.0,0.00131506,120]
[358336254,1744948246966,-247.86998364,0.00131506,120]
[358336255,1744948246975,-500.0,0.00131506,120]
[358336256,1744948246984,-500.0,0.00131506,120]
[358336257,1744948246994,-500.0,0.00131506,120]
[358336258,1744948247003,-500.0,0.00131506,120]
[358336259,1744948247170,-206.91794031,0.00131506,120]
[358336260,1744948247188,-537.58862401,0.00131506,120]
[358336261,1744948247198,-500.0,0.00131506,120]
[358336262,1744948247207,-500.0,0.00131506,120]
[358336263,1744948247216,-500.0,0.00131506,120]
[358336264,1744948247226,-5815.34,0.00131506,120]
[358336265,1744948247235,-500.0,0.00131506,120]
[358336266,1744948247245,-500.0,0.00131506,120]
[358336267,1744948247254,-500.0,0.00131506,120]
[358336268,1744948247263,-500.0,0.00131506,120]
[358336269,1744948247273,-500.0,0.00131506,120]
[358336270,1744948247282,-232.35122611,0.00131506,120]
[358336271,1744948247292,-500.0,0.00131506,120]
[358336272,1744948247305,-558.19680828,0.00131506,120]
[358336273,1744948247314,-500.0,0.00131506,120]
[358336274,1744948247324,-500.0,0.00131506,120]
[358336275,1744948247333,-456.42787507,0.00131506,120]
[358336276,1744948247342,-500.0,0.00131506,120]
[358336277,1744948247352,-542.63280972,0.00131506,120]
[358336278,1744948247361,-500.0,0.00131506,120]
[358336279,1744948247371,-429.23338226,0.00131506,120]
[358336280,1744948247380,-547.03977606,0.00131506,120]
[358336281,1744948247389,-511.09068982,0.00131506,120]
[358336282,1744948247399,-202.82236561,0.00131506,120]
[358336283,1744948247408,-500.0,0.00131506,120]
[358336284,1744948247417,-512.33177266,0.00131506,120]
[358336285,1744948247427,-525.2765624,0.00131506,120]
[358336286,1744948247446,-174.45501604,0.00131506,120]
[358336287,1744948247456,-643.79702987,0.00131506,120]
[358336288,1744948247466,-500.0,0.00131506,120]
[358336289,1744948247475,-500.0,0.00131506,120]
[358336290,1744948247484,-683.61,0.00131506,120]
[358336291,1744948247493,-500.0,0.00131506,120]
[358336292,1744948247502,-523.66159473,0.00131506,120]
[358336293,1744948247511,-500.0,0.00131506,120]
[358336294,1744948247520,-500.0,0.00131506,120]
[358336295,1744948247528,-519.71919059,0.00131506,120]
[358336296,1744948247537,-500.0,0.00131506,120]
[358336297,1744948247546,-520.14710813,0.00131506,120]
[358336298,1744948247556,-500.0,0.00131506,120]
[358336299,1744948247565,-500.0,0.00131506,120]
[358336300,1744948247573,-500.0,0.00131506,120]
[358336301,1744948247582,-500.0,0.00131506,120]
[358336302,1744948247591,-532.18195224,0.00131506,120]
[358336303,1744948247600,-500.0,0.00131506,30]
[358336304,1744948247609,-500.0,0.00131506,120]
[358336305,1744948247618,-513.4941925,0.00131506,120]
[358336306,1744948247628,-500.0,0.00131506,120]
[358336307,1744948247638,-507.0991924,0.00131506,120]
[358336308,1744948247647,-500.0,0.00131506,120]
[358336309,1744948247656,-500.0,0.00131506,120]
[358336310,1744948247667,-514.29135373,0.00131506,120]
[358336311,1744948247678,-502.36374444,0.00131506,120]
[358336312,1744948247687,-500.0,0.00131506,120]
[358336313,1744948247696,-500.0,0.00131506,120]
[358336314,1744948247706,-500.0,0.00131506,120]
[358336315,1744948247715,-500.0,0.00131506,120]
[358336316,1744948247725,-500.0,0.00131506,120]
[358336317,1744948247734,-576.9291002,0.00131506,120]
[358336318,1744948247743,-500.0,0.00131506,120]
[358336319,1744948247752,-502.48009649,0.00131506,7]
[358336320,1744948247761,-226.07453642,0.00131506,120]
[358336321,1744948247770,-532.39549302,0.00131506,120]
[358336322,1744948247779,-500.0,0.00131506,120]
[358336323,1744948247789,-500.0,0.00131506,120]
[358336324,1744948247798,-569.79196467,0.00131506,120]
[358336325,1744948247807,-500.0,0.00131506,120]
[358336326,1744948247817,-515.46949032,0.00131506,120]
[358336327,1744948247826,-579.54145069,0.00131506,120]
[358336328,1744948247835,-508.2523808,0.00131506,120]
[358336329,1744948247845,-500.0,0.00131506,120]
[358336330,1744948247855,-500.0,0.00131506,120]
[358336331,1744948247865,-500.0,0.00131506,2]
[358336332,1744948247874,-500.0,0.00131506,120]
[358336333,1744948247884,-500.0,0.00131506,120]
[358336334,1744948247893,-506.2361295,0.00131506,120]
[358336335,1744948247903,-500.0,0.00131506,120]
[358336336,1744948247912,-530.47078457,0.00131506,120]
[358336337,1744948247922,-500.0,0.00131506,120]
[358336338,1744948247932,-367.38746141,0.00131506,120]
[358336339,1744948247941,-500.0,0.00131506,120]
[358336340,1744948247951,-501.66198284,0.00131506,120]
[358336341,1744948247960,-500.0,0.00131506,120]
[358336342,1744948247970,-500.0,0.00131506,120]
[358336343,1744948247979,-500.0,0.00131506,120]
[358336344,1744948247989,-500.0,0.00131506,120]
[358336345,1744948247998,-263.28294291,0.00131506,120]
[358336346,1744948248008,-517.68006624,0.00131506,120]
[358336347,1744948248018,-525.9018859,0.00131506,120]
[358336348,1744948248027,-500.0,0.00131506,120]
[358336349,1744948248036,-512.12984174,0.00131506,120]
[358336350,1744948248046,-533.04388596,0.00131506,120]
[358336351,1744948248055,-453.59334127,0.00131506,120]
[358336352,1744948248065,-500.0,0.00131506,120]
[358336353,1744948248074,-500.65255006,0.00131506,120]
[358336354,1744948248084,-500.0,0.00131506,120]
[358336355,1744948248094,-509.97683647,0.00131506,120]
[358336356,1744948248103,-500.0,0.00131506,120]
[358336357,1744948248113,-500.0,0.00131506,120]
[358336358,1744948248122,-500.0,0.00131506,120]
[358336359,1744948248132,-194.62013825,0.00131506,120]
[358336360,1744948248142,-500.0,0.00131506,120]